Cogmind - Beta 11 X10 @@@ ROGUE MODE // 2022.02.06 @ 22:47:38 Player: whisper Result: Destroyed by P-80 Master with Gamma Rifle Performance ------------- Evolutions (7) 3500 Regions Visited (19) 3800 Robots Destroyed (153) 765 Value Destroyed (6018) 6018 Prototype IDs (25) 500 Alien Tech Used (1) 200 Bonus (2004) 2004 TOTAL SCORE: 16787 Bonus ------- High Alert Combat Kills 274 Follower Combat Kills 1628 Met Zhirov 300 Built Enhanced Grunts 300 Friendly Fire -498 Cogmind --------- Core Integrity 0/1300 Matter 139/300 Energy 73/100 System Corruption 19% Temperature Cool (0) Movement Core (50) Location -3/Research Parts ------- > --- POWER (2) -------- (None) > --- PROPULSION (6) --- Improved Heavy Siege Treads > --- UTILITY (11) ----- (None) > --- WEAPON (2) ------- (None) > --- INVENTORY (5) ---- Advanced Power Amplifier Advanced Energy Well (500) Heavy Plasma Cannon Hypervelocity Mass Driver Enhanced Force Lance Peak State ------------ > --- POWER ------------ Micro Antimatter Reactor Micro Antimatter Reactor > --- PROPULSION ------- Medium Treads Medium Treads Heavy Treads Improved Heavy Treads > --- UTILITY ---------- Advanced Heat Sink Advanced Heat Sink Improved Coolant Injector High-capacity Storage Unit Experimental Optical Array Advanced Signal Interpreter Makeshift Terrain Scan Processor Experimental Target Analyzer Particle Accelerator Centrium Medium Armor Plating Centrium Medium Armor Plating > --- WEAPON ----------- Nova Cannon Nova Cannon > --- INVENTORY -------- Micro Antimatter Reactor Centrium Heavy Treads Advanced Power Amplifier Advanced Heat Sink Advanced Energy Well Triangulator Advanced Sensor Array Long-range Terrain Scanner Transdimensional Reconstructor Disruptor Cannon Heavy Plasma Cannon Railgun Railgun Advanced KE Penetrator Hypervelocity Mass Driver Rocket Launcher Improved Remote Datajack [Rating: 147] Favorites ----------- Power Fusion Reactor Engine Improved Deuterium Engine Power Core Enhanced Nuclear Core Reactor Fusion Reactor Propulsion Light Treads Treads Light Treads Leg Aluminum Leg Wheel Armored Huge Wheel Hover Unit Improved Hover Unit Utility High-capacity Storage Unit Device Advanced Heat Sink Storage High-capacity Storage Unit Processor Makeshift Terrain Scan Processor Hackware Hacking Suite Protection Hardened Medium Armor Plating Weapon Enhanced Autogun Energy Gun EM Pulse Gun Energy Cannon Heavy Plasma Cannon Ballistic Gun Enhanced Autogun Ballistic Cannon Gauss Cannon Launcher Rocket Launcher Impact Weapon Heavy Mace Slashing Weapon Molecular Scythe Piercing Weapon Enhanced Force Lance Build | -11 -10 -9 -9 -8 -7 -6 -6 -6 -6 -6 -5 -5 -5 -5 -4 -4 -4 -4 -3 ------- Run | Scr Mat Mat Min Mat Fac Fac Ext Cet Arc Hub Fac Upp Upp Zhi Pro Fac Upp Upp Res Slots Evolved 14 | . . 2 . 2 2 2 . . . . 2 . . . . 2 . . 2 Power 1 | . . . . . . 1 . . . . . . . . . . . . . Propulsion 4 | . . 2 . 1 . . . . . . . . . . . . . . 1 Utility 9 | . . . . 1 2 1 . . . . 2 . . . . 2 . . 1 Weapon . | . . . . . . . . . . . . . . . . . . . . Parts Attached 269 | 6 3 7 2 35 16 14 34 4 5 11 9 9 15 6 23 17 5 . 48 Power 16 | 1 . . . 1 1 1 2 . 1 . . . 1 1 . 3 . . 4 Engine 3 | 1 . . . . . 1 1 . . . . . . . . . . . . Core 8 | . . . . 1 1 . 1 . . . . . 1 . . 3 . . 1 Reactor 5 | . . . . . . . . . 1 . . . . 1 . . . . 3 Propulsion 48 | 2 . 4 . 14 2 2 4 3 2 3 1 . 2 . 1 1 . . 7 Treads 36 | . . . . 11 1 2 3 2 2 3 1 . 2 . 1 1 . . 7 Leg 3 | 2 . . . . . . . 1 . . . . . . . . . . . Wheel 2 | . . . . . 1 . 1 . . . . . . . . . . . . Hover 7 | . . 4 . 3 . . . . . . . . . . . . . . . Flight . | . . . . . . . . . . . . . . . . . . . . Utility 133 | 1 2 1 . 6 8 8 14 1 1 7 6 4 7 4 16 12 5 . 30 Device 75 | . 1 1 . 2 3 5 6 . . 4 2 3 3 3 11 8 3 . 20 Storage 7 | 1 1 . . 2 1 . . . . . 1 . 1 . . . . . . Processor 11 | . . . . 1 3 . 1 . . . 2 . 1 . 1 . . . 2 Hackware 3 | . . . . . . . 2 . . 1 . . . . . . . . . Protection 37 | . . . . 1 1 3 5 1 1 2 1 1 2 1 4 4 2 . 8 Artifact . | . . . . . . . . . . . . . . . . . . . . Weapon 72 | 2 1 2 2 14 5 3 14 . 1 1 2 5 5 1 6 1 . . 7 Energy Gun 4 | 2 1 . . 1 . . . . . . . . . . . . . . . Energy Cannon 14 | . . 2 1 . . . 2 . . . . 1 1 . 4 1 . . 2 Ballistic Gun 29 | . . . . 9 3 2 5 . 1 1 1 2 2 1 . . . . 2 Ballistic Cannon 2 | . . . . . . . 2 . . . . . . . . . . . . Launcher 16 | . . . 1 3 . 1 3 . . . 1 2 2 . 2 . . . 1 Special Weapon . | . . . . . . . . . . . . . . . . . . . . Impact Weapon 5 | . . . . 1 2 . 2 . . . . . . . . . . . . Slashing Weapon 1 | . . . . . . . . . . . . . . . . . . . 1 Piercing Weapon 1 | . . . . . . . . . . . . . . . . . . . 1 Special Melee Weapon . | . . . . . . . . . . . . . . . . . . . . Unidentified Prototypes 14 | . . 1 . 2 1 . . 1 . 2 . . 1 3 . . . . 3 Corrupted Parts 2 | . . . . . . . . . . 2 . . . . . . . . . System Corruption 15 | . . . . . . . . . . 15 . . . . . . . . . Parts Lost 25 | . . . . 4 1 . 5 . . . . . 2 . . . . . 13 Power 2 | . . . . . . . . . . . . . 2 . . . . . . Propulsion 11 | . . . . 3 . . 3 . . . . . . . . . . . 5 Utility 8 | . . . . 1 1 . 1 . . . . . . . . . . . 5 Weapon 4 | . . . . . . . 1 . . . . . . . . . . . 3 Highest Loss Streak 5 | . . . . 4 1 . 2 . . . . . 1 . . . . . 5 To Critical Strikes . | . . . . . . . . . . . . . . . . . . . . Average Slot Usage (%) 91 | . 98 100 100 99 93 93 91 92 98 99 99 94 92 91 93 86 84 84 80 Engine 2 | . 14 11 11 4 . 6 7 6 6 6 5 5 . . . . . . . Core 2 | . . . . 4 7 6 4 6 2 . . . 3 . . 1 5 5 1 Reactor 4 | . . . . . . . . . 3 6 5 5 5 8 11 8 5 5 7 Treads 21 | . . . . 35 26 20 17 18 30 33 28 23 23 23 23 16 15 15 17 Wheel 1 | . . . . . 5 6 7 6 1 . . . . . . . . . . Hover 2 | . . 44 44 8 . . . . . . . . . . . . . . . Device 12 | . 12 11 11 6 8 14 5 6 6 4 11 10 13 6 16 17 19 15 18 Storage 5 | . 14 11 11 9 7 6 6 6 6 6 5 5 5 5 5 5 5 5 3 Processor 13 | . . . . 8 19 16 10 13 13 8 11 17 17 17 16 15 15 15 13 Protection 6 | . . . . 2 1 1 7 13 13 17 11 11 7 15 5 9 6 10 9 Energy Cannon 4 | . . 6 22 1 . . . . . . . . 1 . 10 9 10 10 7 Ballistic Gun 6 | . . . . 16 13 12 9 6 11 13 10 10 7 11 . . . . . Naked Turns 82 | . . . . . . . . . . . . . . . . . . . 82 Heaviest Build 120 | 14 20 24 24 37 55 82 84 88 97 105 105 105 105 103 113 120 110 102 119 Greatest Support 206 | 20 20 28 28 100 100 28 38 28 111 111 141 141 149 149 149 173 173 173 206 Greatest Overweight (x) 3 | . . . . 2 1 2 2 3 3 1 . . . . 1 . . . . Average Overweight (x) . | . . . . . . 2 1 2 . . . . . . . . . . . Largest Inventory Capacity 20 | 8 10 10 10 15 20 20 20 20 20 20 20 20 20 20 20 20 20 20 20 Average Capacity 18 | 7 9 10 10 14 16 20 20 20 20 20 20 20 20 20 20 20 20 20 19 Most Carried 20 | 6 10 10 10 15 19 20 20 20 20 20 20 20 20 20 20 20 20 20 20 Average Carried 18 | 3 8 9 10 14 15 18 19 19 19 19 19 19 19 19 20 19 20 20 17 Final Capacity 20 | 8 10 10 10 15 20 20 20 20 20 20 20 20 20 20 20 20 20 20 5 Final Carried 20 | 6 10 10 10 15 19 20 20 20 20 20 20 20 20 20 20 20 20 20 5 Class Distribution -------------------- 32% | Scavenger-Mutant 22% | Scavenger-Skirmisher 20% | Skirmisher 17% | Mutant 3% | Commander-Mutant Dominant Class ---------------- Mutant | -10/Materials Mutant | -9/Materials Mutant | -9/Mines Scavenger-Mutant | -8/Materials Skirmisher | -7/Factory Skirmisher | -6/Factory Mutant | -6/Extension Commander-Mutant | -6/Cetus Scavenger-Mutant | -6/Archives Scavenger-Mutant | -6/Hub_04(d) Scavenger-Skirmisher | -5/Factory Scavenger-Skirmisher | -5/Upper Caves Scavenger-Mutant | -5/Upper Caves Scavenger-Mutant | -5/Zhirov Scavenger-Skirmisher | -4/Proximity Caves Skirmisher | -4/Factory Skirmisher | -4/Upper Caves Skirmisher | -4/Upper Caves Scavenger-Skirmisher | -3/Research Resources | -11 -10 -9 -9 -8 -7 -6 -6 -6 -6 -6 -5 -5 -5 -5 -4 -4 -4 -4 -3 ----------- Run | Scr Mat Mat Min Mat Fac Fac Ext Cet Arc Hub Fac Upp Upp Zhi Pro Fac Upp Upp Res Matter Collected 4758 | 206 57 60 79 962 205 90 999 120 81 61 190 194 270 . 348 314 70 . 452 Remotely 57 | . 57 . . . . . . . . . . . . . . . . . . Salvage Created 6856 | . 57 60 28 1458 101 173 959 71 . . 173 27 252 . 314 494 537 . 2152 Parts 339 | . 5 3 10 75 12 10 41 4 . . 6 2 14 . 17 18 16 . 106 Haulers Intercepted 7 | . . 1 . 5 . . . . . . . . . . . . . . 1 Recyclers Shooed 5 | . . . . 3 . . 1 . . . . . . . . 1 . . . Parts Field Recycled . | . . . . . . . . . . . . . . . . . . . . Retrieved Matter . | . . . . . . . . . . . . . . . . . . . . Parts Self-Destructed 53 | . . . . . . . . . . . . 14 14 . 9 . 16 . . Prevented 6 | . . . . . . . . . . . . . . . 6 . . . . Kills | -11 -10 -9 -9 -8 -7 -6 -6 -6 -6 -6 -5 -5 -5 -5 -4 -4 -4 -4 -3 ------- Run | Scr Mat Mat Min Mat Fac Fac Ext Cet Arc Hub Fac Upp Upp Zhi Pro Fac Upp Upp Res Combat Hostiles Destroyed 113 | . . . 4 18 1 4 16 1 . . 1 1 12 . 12 5 8 . 30 Guns 36 | . . . . 16 1 2 7 1 . . . 1 4 . . . . . 4 Cannons 29 | . . . . . . . . . . . . . . . . 3 8 . 18 AOE 40 | . . . 4 2 . 2 9 . . . 1 . 8 . 9 . . . 5 Classes Destroyed 14 | . 1 1 2 7 1 . 2 . . . . . . . . . . . . Worker 5 | . . . . 2 . . . . . . . . . . . . . . 3 Builder 4 | . . . . 1 . . 1 . . . . . . . . . . . 2 Tunneler 1 | . . . 1 . . . . . . . . . . . . . . . . Hauler 7 | . . 1 . 5 . . . . . . . . . . . . . . 1 Recycler 7 | . . . . 3 . . 1 . . . 1 . . . . 1 . . 1 Operator 2 | . . . . . . . 2 . . . . . . . . . . . . Watcher 12 | . 2 . . 5 2 1 1 . . . . . . . . 1 . . . Swarmer 46 | . . . 4 3 . 3 6 . . . . 1 9 . 9 . 2 . 9 Grunt 41 | . . . . 9 . . 8 . . . 1 . 3 . 3 3 1 . 13 Brawler 3 | . . . . 1 . . . . . . . . . . . . 2 . . Duelist 2 | . . . . . . . . . . . . . . . . . 2 . . Sentry 10 | . . . . 4 . 1 2 . . . . . . . . . 1 . 2 Hunter 1 | . . . . 1 . . . . . . . . . . . . . . . Programmer 10 | . . . . . 1 . . . . . . . . . . 2 . . 7 Cetus Guard 1 | . . . . . . . . 1 . . . . . . . . . . . Butcher 1 | . . . . . . . 1 . . . . . . . . . . . . Best Kill Streak 8 | . 1 1 4 8 1 4 7 1 . . 1 1 5 . 5 4 8 . 8 Combat Bots Only 8 | . . . 4 6 1 3 4 1 . . 1 1 5 . 5 3 8 . 7 Max Kills in Single Turn 3 | . 1 1 3 2 1 2 3 1 . . 1 1 2 . 2 1 1 . 3 Gunslinging . | . . . . . . . . . . . . . . . . . . . . Exploded 3 | . . . 3 1 . 2 3 . . . 1 . 2 . 2 . . . 3 Melee . | . . . . . . . . . . . . . . . . . . . . Uniques/NPCs Destroyed . | . . . . . . . . . . . . . . . . . . . . Combat | -11 -10 -9 -9 -8 -7 -6 -6 -6 -6 -6 -5 -5 -5 -5 -4 -4 -4 -4 -3 -------- Run | Scr Mat Mat Min Mat Fac Fac Ext Cet Arc Hub Fac Upp Upp Zhi Pro Fac Upp Upp Res Damage Taken 12297 | . . . 56 1041 314 240 1417 68 65 80 38 102 1096 . 503 428 669 . 6180 Core 1803 | . . . 13 92 . 6 86 . . . 16 34 76 . 18 72 78 . 1312 Absorbed by Shields 62 | . . . . . . . 33 29 . . . . . . . . . . . Reduced by Siege Mode 216 | . . . . . . . . . . . . . . . 24 1 9 . 182 Redirected to Shielding 122 | . . . . . . . . . . . . . . . . 62 . . 60 Core Remaining (%) 92 | 100 100 . 96 83 100 . . . . 89 . . . . 85 . . 86 . Volleys Fired 440 | . 5 5 4 101 10 10 73 5 2 4 4 10 32 . 29 21 29 2 94 Largest 2 | . 2 2 2 2 2 2 2 2 2 2 2 2 2 . 2 2 2 1 2 Hottest 226 | . 80 136 136 136 50 50 115 78 78 63 68 90 90 . 165 188 188 90 226 Shots Fired 783 | . 10 10 6 200 21 17 126 10 4 9 5 15 50 . 37 37 51 2 173 Gun 433 | . 10 8 . 190 21 14 103 5 2 9 2 10 36 . . . . . 23 Cannon 302 | . . 2 4 8 . . 11 5 2 . . 2 3 . 30 37 51 2 145 Launcher 48 | . . . 2 2 . 3 12 . . . 3 3 11 . 7 . . . 5 Special . | . . . . . . . . . . . . . . . . . . . . Kinetic 422 | . . . . 190 21 14 103 10 4 9 2 10 36 . . . . . 23 Thermal 274 | . . 2 4 8 . . 11 . . . . 2 3 . 22 24 51 2 145 Explosive 42 | . . . 2 2 . . 9 . . . 3 3 11 . 7 . . . 5 Electromagnetic 45 | . 10 8 . . . 3 3 . . . . . . . 8 13 . . . Robot Hit Streak 18 | . 1 2 4 11 8 9 9 5 9 4 9 12 8 . 9 10 18 . 14 Robot Miss Streak 7 | . 4 4 . 5 1 1 5 1 . 1 . 7 2 . 2 1 2 . 7 Penetration Max 1 | . . . . . . . . 1 . . . 1 1 . . . . . 1 Secondary Targets 7 | . . . . 3 . . 1 . . . . . 2 . . . . . 1 Max Gunslinging Chain 1 | . . . . 1 . . 1 . . . . . 1 . . . . . 1 Shots Hit Robots 477 | . 3 3 4 132 16 12 78 7 4 7 5 4 29 . 13 23 29 . 108 Core Hits 254 | . 2 2 3 56 6 9 50 1 1 2 8 2 28 . 14 9 11 . 50 Critical Kills 11 | . . . 1 . . . 1 . . . 1 . 1 . 1 1 . . 5 Critical Parts Destroyed 5 | . . . . 1 . . 1 . . . . 1 1 . . . . . 1 Critical Strikes 18 | . 1 . 1 1 . . 2 1 . . 1 1 2 . 1 1 . . 6 Meltdown 6 | . . . 1 . . . . . . . . . . . 1 1 . . 3 Destroy 9 | . . . . 1 . . 1 . . . 1 1 2 . . . . . 3 Blast 1 | . . . . . . . . 1 . . . . . . . . . . . Corrupt 1 | . 1 . . . . . . . . . . . . . . . . . . Smash 1 | . . . . . . . 1 . . . . . . . . . . . . Melee Attacks 23 | . . . . 1 4 . 7 . . . . . . . . . . . 11 Impact 12 | . . . . 1 4 . 7 . . . . . . . . . . . . Slashing . | . . . . . . . . . . . . . . . . . . . . Piercing 11 | . . . . . . . . . . . . . . . . . . . 11 Sneak Attacks . | . . . . . . . . . . . . . . . . . . . . Combat Hostiles . | . . . . . . . . . . . . . . . . . . . . Follow-up Attacks . | . . . . . . . . . . . . . . . . . . . . Damage Inflicted 17517 | . 64 40 296 2389 290 316 2658 203 19 126 419 215 1344 . 958 910 1289 . 5981 Guns 5498 | . 64 40 . 1998 290 185 1308 121 19 126 50 121 631 . . . . . 545 Cannons 7358 | . . . 81 147 . . . 82 . . . . . . 413 910 1289 . 4436 Explosions 4331 | . . . 215 239 . 131 1248 . . . 369 94 713 . 545 . . . 777 Melee 301 | . . . . . . . 102 . . . . . . . . . . . 199 Ramming 29 | . . . . 5 . . . . . . . . . . . . . . 24 Kinetic 5476 | . . . . 1998 290 185 1308 203 19 126 50 121 631 . . . . . 545 Thermal 6966 | . . . 81 147 . 49 247 . . . . . . . 180 537 1289 . 4436 Explosive 3668 | . . . 215 239 . . 716 . . . 369 94 713 . 545 . . . 777 Electromagnetic 1077 | . 64 40 . . . 82 285 . . . . . . . 233 373 . . . Impact 102 | . . . . . . . 102 . . . . . . . . . . . . Slashing . | . . . . . . . . . . . . . . . . . . . . Piercing 199 | . . . . . . . . . . . . . . . . . . . 199 Highest Corruption 19 | . . . . . 1 . 2 2 2 17 . . . . . . . . 19 Average Corruption 3 | . . . . . 1 . 1 2 2 2 . . . . . . . . 10 Corruption Purged . | . . . . . . . . . . . . . . . . . . . . Corruption Blocked . | . . . . . . . . . . . . . . . . . . . . Effects 45 | . . . . . 2 . 12 2 1 4 . . . . . . . . 24 Message Errors 8 | . . . . . . . 3 1 . . . . . . . . . . 4 Matter Fused 11 | . . . . . 1 . 2 1 1 1 . . . . . . . . 5 Heat Flow Errors 4 | . . . . . . . 1 . . 1 . . . . . . . . 2 Energy Discharges 4 | . . . . . . . 1 . . . . . . . . . . . 3 Parts Rejected 1 | . . . . . . . . . . . . . . . . . . . 1 Data Loss (minor) 4 | . . . . . . . 2 . . . . . . . . . . . 2 Data Loss (major) 3 | . . . . . . . 1 . . 1 . . . . . . . . 1 Misfires 6 | . . . . . 1 . 1 . . 1 . . . . . . . . 3 Misdirections 2 | . . . . . . . . . . . . . . . . . . . 2 Weapon Failures 2 | . . . . . . . 1 . . . . . . . . . . . 1 Overload Shots . | . . . . . . . . . . . . . . . . . . . . Overflow Damage 626 | . . . 10 8 . . 77 . . . 1 6 50 . . 6 73 . 395 Projectiles 439 | . . . . . . . . . . . . . . . . 6 73 . 360 Explosions 143 | . . . 10 8 . . 33 . . . 1 6 50 . . . . . 35 Melee 44 | . . . . . . . 44 . . . . . . . . . . . . Knockbacks . | . . . . . . . . . . . . . . . . . . . . Impact . | . . . . . . . . . . . . . . . . . . . . Kinetic . | . . . . . . . . . . . . . . . . . . . . Secondary . | . . . . . . . . . . . . . . . . . . . . Self-Inflicted Damage 295 | . . . 41 3 . 28 94 . . . . . 48 . . . . . 81 Shots 13 | . . . 1 1 . 2 5 . . . . . 1 . . . . . 3 Rammed 3 | . . . . 1 . . . . . . . . . . . . . . 2 Targets Rammed 5 | . . . . 3 . . . . . . . . . . . . . . 2 Kicked . | . . . . . . . . . . . . . . . . . . . . Crushed 2 | . . . . 2 . . . . . . . . . . . . . . . Highest Temperature 332 | . 54 82 96 144 27 30 328 103 33 332 30 128 32 . 214 234 253 . 327 Average Temperature 83 | . 25 35 48 27 10 11 117 55 19 87 17 55 11 . 129 107 102 . 111 Received Heat Transfer 2407 | . . . . 468 . . 435 4 9 54 12 18 312 . 196 66 48 . 785 Effects 5 | . . . . . . . 2 . . 1 . . . . 2 . . . . Energy Bleed 1 | . . . . . . . 1 . . . . . . . . . . . . Interference 3 | . . . . . . . 1 . . . . . . . 2 . . . . Short Circuit 1 | . . . . . . . . . . 1 . . . . . . . . . Siege Activations 11 | . . . . . . . . . . . . . . . 1 2 1 . 7 Total Turns 187 | . . . . . . . . . . . . . . . 21 16 22 . 128 Longest Duration 34 | . . . . . . . . . . . . . . . 21 11 22 . 34 Robots Corrupted 3 | . . . . . . . . . . . . . . . 2 1 . . . Combat Hostiles 3 | . . . . . . . . . . . . . . . 2 1 . . . Parts Fried 7 | . 2 . . . . 1 . . . . . . . . 3 1 . . . Impact Corruptions 2 | . . . . . . . 2 . . . . . . . . . . . . Robots Melted 7 | . . . 1 . . . . . . . . . . . 1 1 . . 4 Combat Hostiles 5 | . . . . . . . . . . . . . . . 1 1 . . 3 Parts Melted 23 | . . . 3 1 . . . . . . . . . . 2 3 2 . 12 Heat Transferred 6324 | . . . 148 259 . . 100 . . . . . . . 250 650 1550 . 3367 Parts Sabotaged . | . . . . . . . . . . . . . . . . . . . . Parts Stolen . | . . . . . . . . . . . . . . . . . . . . Parts Stripped . | . . . . . . . . . . . . . . . . . . . . Power Chain Reactions 4 | . . . . . . 2 2 . . . . . . . . . . . . Missiles Intercepted . | . . . . . . . . . . . . . . . . . . . . Alert | -11 -10 -9 -9 -8 -7 -6 -6 -6 -6 -6 -5 -5 -5 -5 -4 -4 -4 -4 -3 ------- Run | Scr Mat Mat Min Mat Fac Fac Ext Cet Arc Hub Fac Upp Upp Zhi Pro Fac Upp Upp Res Peak Influence 921 | . 49 57 117 367 154 89 585 351 309 421 395 . . . . 165 . . 921 Initial 310 | . . 20 22 45 115 . 43 310 140 107 205 . . . . . . . 131 Average 196 | . 13 27 106 218 74 7 294 339 273 258 273 . . . . 35 . . 287 Maximum Alert Level 3 | . . . . 1 . . 2 1 1 2 1 . . . . . . . 3 Low Security (%) 61 | 100 100 100 100 38 100 100 42 . 18 38 . . . . . 100 . . 60 Level 1 26 | . . . . 61 . . 18 100 81 44 100 . . . . . . . 10 Level 2 8 | . . . . . . . 38 . . 17 . . . . . . . . 9 Level 3 4 | . . . . . . . . . . . . . . . . . . . 20 Level 4 . | . . . . . . . . . . . . . . . . . . . . Level 5 . | . . . . . . . . . . . . . . . . . . . . High Security . | . . . . . . . . . . . . . . . . . . . . Max Security . | . . . . . . . . . . . . . . . . . . . . Squads Dispatched 17 | . . 1 . 1 1 . 3 . . 2 . . . . . 2 . . 7 Investigation 1 | . . . . . . . . . . . . . . . . . . . 1 Extermination 8 | . . . . . 1 . . . . 1 . . . . . 2 . . 4 Reinforcement 7 | . . 1 . 1 . . 3 . . 1 . . . . . . . . 1 Assault 1 | . . . . . . . . . . . . . . . . . . . 1 Garrison . | . . . . . . . . . . . . . . . . . . . . Intercept . | . . . . . . . . . . . . . . . . . . . . Construction Impeded 3 | . . . . 1 . . 1 . . . . . . . . . . . 1 Haulers Reinforced . | . . . . . . . . . . . . . . . . . . . . Active Scanning Responses . | . . . . . . . . . . . . . . . . . . . . Cargo Convoy Interrupts . | . . . . . . . . . . . . . . . . . . . . Stealth | -11 -10 -9 -9 -8 -7 -6 -6 -6 -6 -6 -5 -5 -5 -5 -4 -4 -4 -4 -3 --------- Run | Scr Mat Mat Min Mat Fac Fac Ext Cet Arc Hub Fac Upp Upp Zhi Pro Fac Upp Upp Res Distress Signals 12 | . . . . 6 . . 2 1 . . . . . . . 1 . . 2 Communications Jammed . | . . . . . . . . . . . . . . . . . . . . Distress Signals . | . . . . . . . . . . . . . . . . . . . . Times Spotted 208 | . 2 2 4 32 7 6 34 5 3 6 5 9 14 . 5 6 13 . 55 Peak Tracking Total 10 | . 1 2 4 5 3 3 7 5 1 3 3 5 5 . 3 6 9 . 10 Tactical Retreats 11 | . . . . . . . 4 . . . . . . . . . 3 . 4 Traps | -11 -10 -9 -9 -8 -7 -6 -6 -6 -6 -6 -5 -5 -5 -5 -4 -4 -4 -4 -3 ------- Run | Scr Mat Mat Min Mat Fac Fac Ext Cet Arc Hub Fac Upp Upp Zhi Pro Fac Upp Upp Res Traps Triggered 9 | . . . . . 2 . 3 . . . . . . . . 1 . . 3 Indirectly . | . . . . . . . . . . . . . . . . . . . . Trap Hack Attempts . | . . . . . . . . . . . . . . . . . . . . Triggered . | . . . . . . . . . . . . . . . . . . . . Disarmed . | . . . . . . . . . . . . . . . . . . . . Reprogrammed . | . . . . . . . . . . . . . . . . . . . . Reused . | . . . . . . . . . . . . . . . . . . . . Traps Extracted . | . . . . . . . . . . . . . . . . . . . . Installed . | . . . . . . . . . . . . . . . . . . . . Triggered 1 | . . . . . . . 1 . . . . . . . . . . . . Machines | -11 -10 -9 -9 -8 -7 -6 -6 -6 -6 -6 -5 -5 -5 -5 -4 -4 -4 -4 -3 ---------- Run | Scr Mat Mat Min Mat Fac Fac Ext Cet Arc Hub Fac Upp Upp Zhi Pro Fac Upp Upp Res Machines Disabled 13 | . 1 . . 1 . . 3 . 4 2 . . . . . . . . 2 Max in Single Turn 1 | . 1 . . 1 . . 1 . . . . . . . . . . . 1 Garrison Access 2 | . . . . 1 . . . . . . . . . . . . . . 1 Machines Sabotaged . | . . . . . . . . . . . . . . . . . . . . Garrisons Compromised . | . . . . . . . . . . . . . . . . . . . . Overloaded Fab Kills . | . . . . . . . . . . . . . . . . . . . . Hacking | -11 -10 -9 -9 -8 -7 -6 -6 -6 -6 -6 -5 -5 -5 -5 -4 -4 -4 -4 -3 --------- Run | Scr Mat Mat Min Mat Fac Fac Ext Cet Arc Hub Fac Upp Upp Zhi Pro Fac Upp Upp Res Machines Accessed 51 | . 2 . 2 9 3 1 11 . . 6 1 . . 9 . 1 . . 6 Terminals 32 | . 1 . 1 6 1 1 11 . . 6 . . . . . 1 . . 4 Fabricators . | . . . . . . . . . . . . . . . . . . . . Repair Stations 1 | . . . . . 1 . . . . . . . . . . . . . . Recycling Units 1 | . 1 . . . . . . . . . . . . . . . . . . Scanalyzers 4 | . . . . 2 1 . . . . . 1 . . . . . . . . Garrison Access 3 | . . . . 1 . . . . . . . . . . . . . . 2 Total Hacks 137 | . 4 . 2 31 6 2 19 . . 13 4 . . 48 . 1 . . 7 Successful 103 | . 2 . 2 20 5 1 13 . . 6 4 . . 48 . . . . 2 Failed 33 | . 2 . . 11 1 1 5 . . 7 . . . . . 1 . . 5 Catastrophic 2 | . . . . . . . . . . 1 . . . . . . . . 1 Database Lockouts 1 | . . . . . . . 1 . . . . . . . . . . . . Manual 42 | . 4 . 1 15 . . 10 1 . 8 . . . . . . . . 3 Terminals 68 | . 3 . 1 24 1 2 19 . . 13 . . . . . 1 . . 4 Fabricators . | . . . . . . . . . . . . . . . . . . . . Repair Stations 1 | . . . . . 1 . . . . . . . . . . . . . . Recycling Units 1 | . 1 . . . . . . . . . . . . . . . . . . Scanalyzers 14 | . . . . 6 4 . . . . . 4 . . . . . . . . Garrison Access 4 | . . . . 1 . . . . . . . . . . . . . . 3 Terminal Hacks 71 | . . . 1 7 1 1 9 . . 3 . . . 48 . . . . 1 Record 37 | . . . . . . . . . . . . . . 36 . . . . 1 Part Schematic 4 | . . . . . . . . . . . . . . 4 . . . . . Robot Analysis 6 | . . . . 1 . . 1 . . . . . . 4 . . . . . Prototype ID Bank 6 | . . . . 2 . . . . . . . . . 4 . . . . . Open Door 7 | . . . 1 . . 1 5 . . . . . . . . . . . . Terminal Index 2 | . . . . 1 . . . . . 1 . . . . . . . . . Locate Traps 4 | . . . . 2 1 . 1 . . . . . . . . . . . . Hauler Manifests 1 | . . . . 1 . . . . . . . . . . . . . . . Zone Layout 4 | . . . . . . . 2 . . 2 . . . . . . . . . Fabricator Hacks . | . . . . . . . . . . . . . . . . . . . . Repair Station Hacks . | . . . . . . . . . . . . . . . . . . . . Recycling Unit Hacks . | . . . . . . . . . . . . . . . . . . . . Scanalyzer 14 | . . . . 6 4 . . . . . 4 . . . . . . . . Insert Component 7 | . . . . 3 2 . . . . . 2 . . . . . . . . Analyze 7 | . . . . 3 2 . . . . . 2 . . . . . . . . Garrison Access Hacks 1 | . . . . 1 . . . . . . . . . . . . . . . Seal Access 1 | . . . . 1 . . . . . . . . . . . . . . . Unauthorized Hacks 17 | . 2 . 1 6 . . 4 . . 3 . . . . . . . . 1 Terminals 16 | . 2 . 1 6 . . 4 . . 3 . . . . . . . . . Track 4 | . . . 1 3 . . . . . . . . . . . . . . . Assimilate 1 | . . . . . . . . . . 1 . . . . . . . . . Botnet 9 | . 1 . . 2 . . 4 . . 2 . . . . . . . . . Operators 2 | . 1 . . 1 . . . . . . . . . . . . . . . Fabricators . | . . . . . . . . . . . . . . . . . . . . Repair Stations . | . . . . . . . . . . . . . . . . . . . . Recycling Units . | . . . . . . . . . . . . . . . . . . . . Scanalyzers . | . . . . . . . . . . . . . . . . . . . . Garrison Access 1 | . . . . . . . . . . . . . . . . . . . 1 Jam 1 | . . . . . . . . . . . . . . . . . . . 1 Data Cores Recovered 2 | . . . . . . . . . . 2 . . . . . . . . . Used . | . . . . . . . . . . . . . . . . . . . . Hacking Detections 30 | . 2 . . 8 2 . 6 . . 5 1 . . . . 1 . . 5 Full Trace Events . | . . . . . . . . . . . . . . . . . . . . Feedback Events . | . . . . . . . . . . . . . . . . . . . . Feedback Blocked . | . . . . . . . . . . . . . . . . . . . . Robot Schematics Acquired . | . . . . . . . . . . . . . . . . . . . . Robots Built . | . . . . . . . . . . . . . . . . . . . . Authchips . | . . . . . . . . . . . . . . . . . . . . Time . | . . . . . . . . . . . . . . . . . . . . Total Robot Build Rating . | . . . . . . . . . . . . . . . . . . . . Part Schematics Acquired 11 | . . . . 3 2 . . . . . 2 . . 4 . . . . . Parts Built . | . . . . . . . . . . . . . . . . . . . . Authchips . | . . . . . . . . . . . . . . . . . . . . Time . | . . . . . . . . . . . . . . . . . . . . Total Part Build Rating . | . . . . . . . . . . . . . . . . . . . . Parts Repaired . | . . . . . . . . . . . . . . . . . . . . Time . | . . . . . . . . . . . . . . . . . . . . Parts Recycled . | . . . . . . . . . . . . . . . . . . . . Recycled Matter . | . . . . . . . . . . . . . . . . . . . . Retrieved Matter . | . . . . . . . . . . . . . . . . . . . . Retrieved Components . | . . . . . . . . . . . . . . . . . . . . Parts Scanalyzed 7 | . . . . 3 2 . . . . . 2 . . . . . . . . Part Schematics Acquired 7 | . . . . 3 2 . . . . . 2 . . . . . . . . Parts Damaged . | . . . . . . . . . . . . . . . . . . . . Bothacking | -11 -10 -9 -9 -8 -7 -6 -6 -6 -6 -6 -5 -5 -5 -5 -4 -4 -4 -4 -3 ------------ Run | Scr Mat Mat Min Mat Fac Fac Ext Cet Arc Hub Fac Upp Upp Zhi Pro Fac Upp Upp Res Used RIF Installer . | . . . . . . . . . . . . . . . . . . . . Robots Hacked . | . . . . . . . . . . . . . . . . . . . . Non-combat . | . . . . . . . . . . . . . . . . . . . . Combat . | . . . . . . . . . . . . . . . . . . . . Robot Hacks Applied . | . . . . . . . . . . . . . . . . . . . . Relay Couplers Released . | . . . . . . . . . . . . . . . . . . . . Fabnet Peak Effective % . | . . . . . . . . . . . . . . . . . . . . Robots Rewired 9 | . . . . . . . 7 . . . . . . . . . 2 . . Allies Hacked . | . . . . . . . . . . . . . . . . . . . . Hacks Repelled . | . . . . . . . . . . . . . . . . . . . . Allies | -11 -10 -9 -9 -8 -7 -6 -6 -6 -6 -6 -5 -5 -5 -5 -4 -4 -4 -4 -3 -------- Run | Scr Mat Mat Min Mat Fac Fac Ext Cet Arc Hub Fac Upp Upp Zhi Pro Fac Upp Upp Res Total Allies 22 | . . . . . . . 15 5 . . . . . . . . 2 . . Largest Group 10 | . . . . . . . 10 10 8 4 2 2 2 . . . 2 2 2 Highest-Rated Group 617 | . . . . . . . 399 617 521 314 192 192 192 . . . 97 97 97 Highest-Rated Ally 159 | . . . . . . . 159 146 130 96 96 96 96 . . . 49 49 49 Total Orders . | . . . . . . . . . . . . . . . . . . . . Ally Attacks 210 | . . . . . . . 66 45 28 23 10 23 7 . . . 2 . 6 Total Damage 5829 | . . . . . . . 1510 1074 837 834 269 740 238 . . . 86 . 241 Kills 46 | . . . . . . . 13 4 4 10 3 8 1 . . . 1 . 2 Allies Corrupted 1 | . . . . . . . . . . . . . . . . . . . 1 Allies Melted . | . . . . . . . . . . . . . . . . . . . . Intel | -11 -10 -9 -9 -8 -7 -6 -6 -6 -6 -6 -5 -5 -5 -5 -4 -4 -4 -4 -3 ------- Run | Scr Mat Mat Min Mat Fac Fac Ext Cet Arc Hub Fac Upp Upp Zhi Pro Fac Upp Upp Res Robot Analysis Total 6 | . . . . 1 . . 1 . . . . . . 4 . . . . . Derelict Logs Recovered 4 | . . . 1 . . . . . . . . 2 1 . . . . . . Drone Launches . | . . . . . . . . . . . . . . . . . . . . Drone Recoveries . | . . . . . . . . . . . . . . . . . . . . Exploration | -11 -10 -9 -9 -8 -7 -6 -6 -6 -6 -6 -5 -5 -5 -5 -4 -4 -4 -4 -3 ------------- Run | Scr Mat Mat Min Mat Fac Fac Ext Cet Arc Hub Fac Upp Upp Zhi Pro Fac Upp Upp Res Turns Passed 11259 | 69 191 90 189 1205 802 493 1001 268 242 274 170 539 669 363 1494 510 1019 95 1576 Spaces Moved 5874 | 47 133 114 336 539 582 327 508 92 127 148 89 296 272 217 512 235 464 33 803 Core 168 | 3 . . . . . . . . . . . . . . . . . . 165 Treads 3474 | . . . . 370 91 . . . 109 148 89 296 272 217 512 235 464 33 638 Legs 177 | 44 133 . . . . . . . . . . . . . . . . . . Wheels 1436 | . . . . . 491 327 508 92 18 . . . . . . . . . . Hover 619 | . . 114 336 169 . . . . . . . . . . . . . . . Flight . | . . . . . . . . . . . . . . . . . . . . Fastest Speed 44 | 50 120 48 48 44 115 130 105 130 145 160 160 160 160 160 160 160 160 160 50 Average Speed 137 | 115 120 48 48 123 122 130 125 140 157 160 160 160 160 160 184 160 160 160 137 Slowest Speed 240 | 120 120 48 48 216 160 130 130 145 160 240 160 160 160 160 240 160 160 160 160 Overloaded Moves . | . . . . . . . . . . . . . . . . . . . . Propulsion Burnouts . | . . . . . . . . . . . . . . . . . . . . Robots Hopped . | . . . . . . . . . . . . . . . . . . . . Cave-ins Triggered . | . . . . . . . . . . . . . . . . . . . . Exploration Rate (%) 36 | 3 27 13 67 59 15 10 63 48 76 22 6 61 43 63 65 5 54 9 26 Regions Visited 19 Branch Regions 11 Pre-discovered Areas 3 | . . . . . . . . . . . . . . 3 . . . . . Known Exits Taken 14 | . . . . . 1 1 1 1 1 1 1 1 1 1 1 1 1 1 . Unknown Exits Taken 5 | 1 1 1 1 1 . . . . . . . . . . . . . . . Scrap Searched 14 | . . . 1 . . . . . . . . 4 3 . 2 . 4 . . Spaces Dug 105 | . . . . 1 3 . 11 . . . . 2 42 . 11 5 11 2 17 Terrain Destroyed 442 | . . . 28 16 3 3 106 2 1 . 10 35 83 . 68 10 18 2 57 Melee 7 | . . . . 1 3 . 2 . . . . . . . . . . . 1 Projectile 114 | . . . . . . . 12 2 1 . 1 7 7 . 14 10 18 2 40 AOE 321 | . . . 28 15 . 3 92 . . . 9 28 76 . 54 . . . 16 Terrain Rammed . | . . . . . . . . . . . . . . . . . . . . Walls Destroyed . | . . . . . . . . . . . . . . . . . . . . Machines Disabled . | . . . . . . . . . . . . . . . . . . . . Actions | -11 -10 -9 -9 -8 -7 -6 -6 -6 -6 -6 -5 -5 -5 -5 -4 -4 -4 -4 -3 --------- Run | Scr Mat Mat Min Mat Fac Fac Ext Cet Arc Hub Fac Upp Upp Zhi Pro Fac Upp Upp Res Total 8311 | 58 156 140 356 898 656 386 772 224 165 175 111 344 453 233 1013 333 687 73 1078 Wait 1328 | . 2 5 13 168 18 6 67 111 22 5 1 26 126 . 448 40 149 39 82 Move 5855 | 46 132 113 335 538 581 326 507 91 126 147 88 295 271 216 511 234 463 32 803 Hop . | . . . . . . . . . . . . . . . . . . . . Pick Up 125 | 6 7 4 1 20 14 15 16 5 4 2 4 2 3 3 . 6 . . 13 Fast Attach 74 | 6 3 3 . 11 2 1 6 2 3 3 1 . 4 5 1 8 . . 15 Attach 49 | . . 4 . 5 5 3 7 2 . 2 2 1 3 . . 2 . . 13 Detach 30 | . 2 1 . 5 3 2 4 . . 2 . 1 1 1 1 1 . . 6 Swap 147 | . . . 2 19 9 10 21 . 2 6 6 8 8 2 22 7 5 . 20 Drop 144 | . 5 5 1 27 10 13 14 8 6 4 5 1 5 6 1 14 . . 19 Fire 440 | . 5 5 4 101 10 10 73 5 2 4 4 10 32 . 29 21 29 2 94 Melee 23 | . . . . 1 4 . 7 . . . . . . . . . . . 11 Ram . | . . . . . . . . . . . . . . . . . . . . Kick . | . . . . . . . . . . . . . . . . . . . . Crush 5 | . . . . 3 . . . . . . . . . . . . . . 2 Escape Stasis 24 | . . . . . . . 24 . . . . . . . . . . . . Rewire 67 | . . . . . . . 26 . . . . . . . . . 41 . . Trap . | . . . . . . . . . . . . . . . . . . . . Miscellaneous . | . . . . . . . . . . . . . . . . . . . . Route ------- -11/Scrapyard -10/Materials -9/Materials -9/Mines -8/Materials -7/Factory -6/Factory -6/Extension (discovered 2 exits: *Fac / *Cet) -6/Cetus -6/Archives (discovered 3 exits: *Fac / *Hub x2) -6/Hub_04(d) -5/Factory -5/Upper Caves -5/Upper Caves (discovered 2 exits: Fac / *Zhi) -5/Zhirov -4/Proximity Caves -4/Factory -4/Upper Caves -4/Upper Caves -3/Research History --------- Turn | Location | Event 4 | -11/Scrapyard | Discovered new exit (range 16) 70 | -11/Scrapyard | Entered Materials 254 | -10/Materials | Discovered new exit (range 4) 261 | -10/Materials | Entered another Materials area 261 | -9/Materials | Evolved 2 slots: Propulsion x2 291 | -9/Materials | Discovered new exit (range 15) 300 | -9/Materials | Build established: Mutant 351 | -9/Materials | Entered Mines 382 | -9/Mines | Met a Derelict who couldn't figure out how to use a Trap Extractor 431 | -9/Mines | YI-UF0 nonchalantly dropped a Grenade Launcher on the ground 532 | -9/Mines | Discovered new exit (range 8) 537 | -9/Mines | Learned 2 Materials zone layouts 540 | -9/Mines | Entered Materials 540 | -8/Materials | Evolved 2 slots: Propulsion x1, Utility x1 808 | -8/Materials | Lost 4 parts (3n1u) 1084 | -8/Materials | Build established: Scavenger-Mutant 1737 | -8/Materials | Discovered new exit (range 5) 1745 | -8/Materials | Entered Factory 1745 | -7/Factory | Evolved 2 slots: Utility x2 2507 | -7/Factory | Discovered new exit (range 10) 2525 | -7/Factory | Build established: Skirmisher 2546 | -7/Factory | Identified exit to Factory 2547 | -7/Factory | Entered another Factory area 2547 | -6/Factory | Evolved 2 slots: Power x1, Utility x1 3035 | -6/Factory | Discovered new exit (range 6) 3039 | -6/Factory | Identified exit to Extension 3040 | -6/Factory | Entered Extension 3119 | -6/Extension | Rescued a captive Derelict 3120 | -6/Extension | Rescued a captive Derelict 3248 | -6/Extension | Rescued a captive Derelict 3306 | -6/Extension | Build established: Mutant 3515 | -6/Extension | Disrupted transfer network 3549 | -6/Extension | Rescued A7 3685 | -6/Extension | Rescued a captive Derelict 3689 | -6/Extension | Rescued a captive Derelict 3765 | -6/Extension | Rescued a captive Derelict 3779 | -6/Extension | Rescued a captive Derelict 3923 | -6/Extension | Central database locked down 3984 | -6/Extension | Discovered new exit (range 10) 3988 | -6/Extension | Discovered new exit (range 6) 4017 | -6/Extension | Identified exit to Factory 4039 | -6/Extension | Identified exit to Cetus 4041 | -6/Extension | Entered Cetus 4041 | -6/Cetus | Accompanied by 10 allies (A7) 4046 | -6/Cetus | Acquired a Cetus Manufacturing Module code from A7 4073 | -6/Cetus | Spotted Cetus Guard 4073 | -6/Cetus | Spotted Cetus Guard 4076 | -6/Cetus | Spotted Cetus Guard 4085 | -6/Cetus | Spotted Cetus Guard 4091 | -6/Cetus | Allies destroyed Cetus Guard 4093 | -6/Cetus | Allies destroyed Cetus Guard 4104 | -6/Cetus | Destroyed Cetus Guard 4108 | -6/Cetus | Allies destroyed Cetus Guard 4182 | -6/Cetus | Started Cetus Manufacturing Module 4200 | -6/Cetus | Discovered new exit (range 16) 4207 | -6/Cetus | Manufactured an Enhanced Grunt 4220 | -6/Cetus | Identified exit to Archives 4232 | -6/Cetus | Manufactured an Enhanced Grunt 4257 | -6/Cetus | Manufactured an Enhanced Grunt 4282 | -6/Cetus | Manufactured an Enhanced Grunt 4307 | -6/Cetus | Manufactured an Enhanced Grunt 4309 | -6/Cetus | Entered Archives 4309 | -6/Archives | Accompanied by 8 allies (A7) 4390 | -6/Archives | Discovered new exit (range 15) 4404 | -6/Archives | Discovered new exit (range 16) 4423 | -6/Archives | Discovered exit to Factory (range 15) 4548 | -6/Archives | Identified exit to Hub_04(d) 4551 | -6/Archives | Entered Hub_04(d) 4551 | -6/Hub_04(d) | Accompanied by 4 allies 4773 | -6/Hub_04(d) | Discovered exit to Factory (range 5) 4824 | -6/Hub_04(d) | System corruption reached 10% 4825 | -6/Hub_04(d) | Entered Factory 4825 | -5/Factory | Accompanied by 2 allies 4825 | -5/Factory | Evolved 2 slots: Utility x2 4967 | -5/Factory | Discovered new exit (range 11) 4993 | -5/Factory | Identified exit to Upper Caves 4995 | -5/Factory | Entered Upper Caves 4995 | -5/Upper Caves | Accompanied by 2 allies 5114 | -5/Upper Caves | Build established: Scavenger-Skirmisher 5192 | -5/Upper Caves | Attracted the attention of an 0b10 checkpoint 5238 | -5/Upper Caves | Spotted B-75 Beast 5311 | -5/Upper Caves | Learned Factory terminal intel 5436 | -5/Upper Caves | Learned Factory terminal intel 5498 | -5/Upper Caves | Discovered new exit (range 19) 5533 | -5/Upper Caves | Identified exit to Upper Caves 5534 | -5/Upper Caves | Entered another Upper Caves area 5534 | -5/Upper Caves | Accompanied by 2 allies 6072 | -5/Upper Caves | Discovered new exit (range 16) 6181 | -5/Upper Caves | Build established: Scavenger-Mutant 6182 | -5/Upper Caves | Identified exit to Zhirov 6192 | -5/Upper Caves | Identified exit to Factory 6203 | -5/Upper Caves | Entered Zhirov 6203 | -5/Zhirov | Discovered new exit (range 3) 6207 | -5/Zhirov | Identified exit to Proximity Caves 6232 | -5/Zhirov | Met Zhirov 6261 | -5/Zhirov | Learned location of Quarantine (-2) 6261 | -5/Zhirov | Learned location of Testing (-3) 6261 | -5/Zhirov | Learned location of Command (-1) 6291 | -5/Zhirov | Zhirov requested help retrieving the SGEMP Prototype 6322 | -5/Zhirov | Found Alien Artifact 6322 | -5/Zhirov | Identified Integrated Dissipator 6322 | -5/Zhirov | Installed Integrated Dissipator, increased core heat dissipation (+20) 6350 | -5/Zhirov | Found Alien Artifact 6566 | -5/Zhirov | Entered Proximity Caves 7769 | -4/Proximity Caves | Discovered exit to Factory (range 19) 7905 | -4/Proximity Caves | Received a Behemoth hack from an annoying Tinkerer 8008 | -4/Proximity Caves | Build established: Scavenger-Skirmisher 8060 | -4/Proximity Caves | Entered Factory 8060 | -4/Factory | Evolved 2 slots: Utility x2 8061 | -4/Factory | Loaded intel: 26 terminal locations 8414 | -4/Factory | Discovered new exit (range 24) 8523 | -4/Factory | Identified exit to Upper Caves 8570 | -4/Factory | Entered Upper Caves 8989 | -4/Upper Caves | Build established: Skirmisher 9385 | -4/Upper Caves | Attracted the attention of an 0b10 outpost 9466 | -4/Upper Caves | Destroyed 8 combat bots 9576 | -4/Upper Caves | Discovered new exit (range 9) 9587 | -4/Upper Caves | Identified exit to Upper Caves 9589 | -4/Upper Caves | Entered another Upper Caves area 9589 | -4/Upper Caves | Accompanied by 2 allies 9628 | -4/Upper Caves | Discovered new exit (range 17) 9678 | -4/Upper Caves | Identified exit to Research 9684 | -4/Upper Caves | Entered Research 9684 | -3/Research | Accompanied by 2 allies 9684 | -3/Research | Evolved 2 slots: Propulsion x1, Utility x1 10498 | -3/Research | Build established: Scavenger-Skirmisher 10730 | -3/Research | Destroyed 7 combat bots 10745 | -3/Research | System corruption reached 10% 10833 | -3/Research | Found Prototype Processor 10833 | -3/Research | Identified Exp. Target Analyzer 10887 | -3/Research | Found Enh. Force Lance 10934 | -3/Research | First assault squad dispatched 10986 | -3/Research | Lost 5 parts (1n2u2w) 11171 | -3/Research | Released all parts (16) 11183 | -3/Research | Found Prototype Device 11183 | -3/Research | Identified Exp. Thermal Defense Suite 11189 | -3/Research | Core integrity fell below 50% 11201 | -3/Research | Lost 3 parts (2n1w) 11224 | -3/Research | Core integrity fell below 20% 11257 | -3/Research | Found Prototype Slashing Weapon 11257 | -3/Research | Identified Molecular Scythe 11260 | -3/Research | Destroyed by P-80 Master with Gamma Rifle Last Messages --------------- 11197_ Connecting with Terminal... 11204_ Triggered Tesla Bomb Trap. 11204_ A bubble of electromagnetic force engulfs the area. 11204_ Door malfunctions. 11204_ Tesla Bomb Trap short circuited. 11204_ A bubble of electromagnetic force engulfs the area. 11204_ Tesla Bomb Trap short circuited. 11204_ A bubble of electromagnetic force engulfs the area. 11204_ Tesla Bomb Trap short circuited. 11204_ A bubble of electromagnetic force engulfs the area. 11207_ System corrupted: Heat flow error (+238). 11220_ P-80 Master resets R-10 Processor, system corruption cleaned. 11226_ System corrupted: Component data lost. 11240_ R-10 Processor destroyed. 11243_ System corrupted: Matter fused (-9). 11244_ K-01 Serf collects debris. 11254_ Acquired Imp. Heavy Siege Treads. 11257_ Acquired Prototype Slashing Weapon. 11257_ Identified Molecular Scythe. 11258_ Dropped Molecular Scythe. Map ----- +----------------------------------------------------+ | ####???#?######## # # ?? * # """" # | | ?###?#?????###### # # ? # ""??" # | | ?########### #### + #? # """" # | | #### # # #? # # | | #?# # # =! #? ??# # | | ### # # ! # ? ? # | | ### """ # # # ??? ?# """" | | ### """ """# [###########?##?## """" # | | ### """ !%"""# =[# ## ######## """"" # | | ### " " ""# =*%+ =#==% # """" | | #?# "" % F"# =[#* %#%=% # | | #?# """ !=!%""# =# =#[== # | | #?# """!!=%|"*# # #[ + | | #### =*=%|!=!%# # !# # | | ## !%![%*!=!# #! ! # # | | ########## #### # "# # " " # | | / %|=%[!%### # T# # ""G"" !# | | ###### #!=![### # ! "########## *# | | ########[|%!### # ######?#### =[/ | | #####?##!!!=### # ??###?##?## [%%# | | ####?### ### ################# ### "# | | #####?## =### # ##?# ##%% # | | ########## =%### # #??# ### [# | | ########## =%#?# ppp #### ### [ | | !#[=!!### # ! ##?# ### ![= | | [#!%[%### # @ / #?## ### % | | =[+%% [### ###############?# #?# | | =%#** # # ####?####? ?# ###### # | | !%!#= ### # ? # ? ? # ## | | ########## [%=### # ? # ?? # ## | | ?#?##### # % + ?? ??? ? + + """" | | ####?### # # ? ? ? #"? ???# ## """" | | ######?# #!= #? ? #?"?? # ## """" | | #?#?######%! # ? ??"? ?+ ## | | ?##################### ? ?? #T ??####### | | ##?################??# ? #?" ? ?#?#### | | ###??#??#######?###?##? ? ??#"?????#?#?######### | | ##?######?######?##?#######?##?"" ? ?????##??#??#? | | ###?######?#######?#??#########?? ? ?#??#??###??# | | ####?####?#?###?##?#??##??####???? ?#??#????##??? | | ########?#?##?##?#?#??###?#???#??##?#???##????##?? | | ####?#??###?????#?#######?#??#?#?????????????????? | | #?##?##?##?#?????#??###????#??????????#????#?????? | | #?#?????##?#??##??#?#?##????##???????????????????? | | ?#??#####???????##???###???????#?????????????????? | | #?#####?#?#????##?##?#?##?????#??????????????????? | | | | | | | | | +----------------------------------------------------+ Best States ------------- Heat Dissipation 123 Coolant Potential 80 Energy Generation 54 Energy Capacity 850 Matter Stores 300 Matter Capacity 300 Sight Range 23 Robot Scan Range 16 Terrain Scan Range 24 Terrain Scan Density 135 Power Amplification 30 Base Temperature (-) 150 Armor Coverage 2100 Resistance: KI 20 Propulsion Shielding 90 Utility Shielding 66 Weapon Shielding 66 Evasion (%) 64 Recoil Reduction 6 Particle Charging 30 Offensive Hacking 20 Item Schematics ----------------- Imp. Signal Interpreter | -8/Materials | Scanalyzed Airjet | -8/Materials | Scanalyzed Hvy. Mace | -8/Materials | Scanalyzed Imp. Terrain Scanner | -7/Factory | Scanalyzed Imp. Light Armor Plating | -7/Factory | Scanalyzed Centrium Heavy Treads | -5/Factory | Scanalyzed Adv. Sensor Array | -5/Factory | Scanalyzed Assault Drone Bay | -5/Zhirov | Free Exp. Heat Sink | -5/Zhirov | Free Exp. Optical Array | -5/Zhirov | Free Imp. Arc Thrower | -5/Zhirov | Free Robot Schematics ------------------ None Fabricated ------------ Nothing Alien Tech Used ----------------- Integrated Dissipator Achievements -------------- None Challenges ------------ None Game ------ Seed CorePointyFalx Manual? 0 Play Time 04:19:59 Cumulative 141.7 hours Start 2022.02.04 @ 19:40:26 End 2022.02.06 @ 22:47:38 Sessions 11 Manual Loads 0 Difficulty Rogue Special Mode None Game No. 54 Rogue 54 Adventurer 0 Explorer 0 Win Type - Total 4 Types 3/0/0/1/0/0/0/0/0 Lore% 59 Gallery% 66 Achievement% 54 Wizard Run 0 Options --------- ASCII 1 Keyboard 1 Movement Vi Keybinds 0 Fullscreen 1 Font 20/CogTall Map View 98x62 Tactical HUD 1 Map Filters NONE Filters NONE Steam 1 RUN: 37f052e1-f75b-47ba-b99b-c14c9c76d7b4